bitfinex-derivatives/quotes_SOLF0:USTF0_20250215
["timestamp","ask_amount","ask_price","bid_price","bid_amount"]
[1739619591567,0.03604346,194.17,194.16,5.1496]
[1739619599274,9.16653315,194.24,194.21,5.148]
[1739619599573,9.16653315,194.24,194.19,9.16653315]
[1739619600173,9.16653315,194.24,194.21,5.1481]
[1739619600475,0.03372344,194.23,194.21,5.1481]
[1739619600872,0.03372344,194.23,194.2,5.18632973]
[1739619601274,0.03372344,194.23,194.2,0.03782973]
[1739619605072,0.03372344,194.23,194.21,5.1482]
[1739619606679,0.03372344,194.23,194.2,0.03782973]
[1739619606979,0.03372344,194.23,194.22,5.148]
[1739619611181,0.03372344,194.23,194.21,5.148]
[1739619611573,0.03372344,194.23,194.2,0.03782973]
[1739619611981,0.03372344,194.23,194.21,9.16653315]
[1739619612281,0.03372344,194.23,194.22,5.148]
[1739619615386,9.16653315,194.34,194.21,9.16653315]
[1739619615581,9.16653315,194.34,194.27,9.16653315]
[1739619615787,9.16653315,194.34,194.29,9.16653315]
[1739619615985,9.16653315,194.34,194.3,5.1458]
[1739619616486,0.03275311,194.34,194.3,5.1830291]
[1739619617087,5.17755311,194.34,194.3,0.0372291]
[1739619617290,0.03275311,194.34,194.3,0.0372291]
[1739619617985,9.19928626,194.34,194.3,0.0372291]
[1739619618192,9.16653315,194.32,194.3,0.0372291]
[1739619618489,5.1456,194.31,194.3,0.0372291]
[1739619620592,9.16653315,194.32,194.22,1.6178]
[1739619620789,9.16653315,194.26,194.19,9.16653315]
[1739619620994,9.16653315,194.26,194.21,9.16653315]
[1739619621289,9.16653315,194.28,194.21,9.16653315]
[1739619621796,0.03858975,194.26,194.23,0.03636757]
[1739619622194,0.03858975,194.26,194.23,5.18386757]
[1739619622395,0.03858975,194.26,194.23,9.20290072]
[1739619622595,0.03858975,194.26,194.25,9.16653315]
[1739619623091,0.03858975,194.26,194.25,14.31373315]
[1739619624697,1.506,194.33,194.25,14.31373315]
[1739619624698,9.16653315,194.34,194.25,9.16653315]
[1739619624995,102.06061418,194.36,194.3,14.31233315]
[1739619625796,107.20491418,194.36,194.3,14.31233315]
[1739619625990,0.03797856,194.35,194.31,5.17839601]
[1739619627098,0.03797856,194.35,194.31,0.03299601]
[1739619627297,0.03797856,194.35,194.32,9.16653315]
[1739619628197,0.03797856,194.35,194.31,5.17839601]
[1739619629698,0.03797856,194.35,194.31,0.03299601]
[1739619629998,0.03797856,194.35,194.32,9.16653315]
[1739619630393,0.03797856,194.35,194.34,5.1448]
[1739619631199,0.03797856,194.35,194.34,14.31133315]
[1739619635504,0.03797856,194.35,194.32,9.16653315]
[1739619635703,0.03797856,194.35,194.32,5.1453]
[1739619636101,0.03797856,194.35,194.31,0.03299601]
[1739619636810,0.03797856,194.35,194.32,14.31183315]
[1739619638000,0.03797856,194.35,194.32,9.16653315]
[1739619638303,0.03797856,194.35,194.33,5.145]
[1739619639103,0.03797856,194.35,194.34,14.31133315]
[1739619639510,9.16653315,194.44,194.34,9.16653315]
[1739619639807,9.16653315,194.44,194.31,0.03299601]
[1739619639808,9.16653315,194.44,194.37,9.16653315]
[1739619640216,96.64129276,194.45,194.39,9.16653315]
[1739619640602,5.1425,194.43,194.39,9.16653315]
[1739619640808,5.1425,194.43,194.4,0.03815909]
[1739619642008,0.0373427,194.44,194.4,0.03815909]
[1739619642609,0.0373427,194.44,194.4,5.18115909]
[1739619643213,0.0373427,194.44,194.42,5.1427]
[1739619643414,0.0373427,194.44,194.41,9.16653315]
[1739619645215,0.0373427,194.44,194.4,0.03815909]
[1739619646007,5.1795427,194.44,194.4,0.03815909]
[1739619648717,0.0373427,194.44,194.4,5.18135909]
[1739619648914,0.0373427,194.44,194.41,9.16653315]
[1739619651013,0.0373427,194.44,194.42,5.1427]
[1739619651308,0.0373427,194.44,194.41,9.16653315]
[1739619651510,0.0373427,194.44,194.43,9.16653315]
[1739619651814,0.0373427,194.44,194.43,14.30893315]
[1739619655017,0.0373427,194.44,194.43,9.16653315]
[1739619655221,0.0373427,194.44,194.41,14.30943315]
[1739619656918,0.0373427,194.44,194.41,9.16653315]
[1739619657118,0.0373427,194.44,194.42,5.1427]
[1739619659622,0.0373427,194.44,194.43,9.16653315]
[1739619659815,0.0373427,194.44,194.43,14.30893315]
[1739619660121,0.0373427,194.44,194.43,9.16653315]
[1739619661524,0.0373427,194.44,194.43,14.30893315]
[1739619667030,0.0373427,194.44,194.41,9.16653315]
[1739619667231,0.0373427,194.44,194.4,0.03815909]
[1739619667432,9.20387585,194.44,194.4,0.03815909]
[1739619667932,5.1425,194.43,194.4,0.03815909]
[1739619668236,9.16653315,194.42,194.4,0.03815909]
[1739619668436,14.30943315,194.42,194.4,0.03815909]
[1739619669437,5.143,194.41,194.4,0.03815909]
[1739619670836,5.1427,194.43,194.4,0.03815909]
[1739619671441,9.20387585,194.44,194.4,0.03815909]
[1739619671639,0.0373427,194.44,194.41,9.16653315]
[1739619671936,0.0373427,194.44,194.43,9.16653315]
[1739619674038,0.0373427,194.44,194.43,14.30893315]
[1739619675234,0.0373427,194.44,194.41,9.16653315]
[1739619675532,9.20387585,194.44,194.4,0.03815909]
[1739619676237,5.1795427,194.44,194.4,0.03815909]
[1739619676437,0.0373427,194.44,194.41,9.16653315]
[1739619677840,0.0373427,194.44,194.41,14.30923315]
[1739619678137,0.0373427,194.44,194.43,9.16653315]
[1739619679038,0.0373427,194.44,194.43,14.30893315]
[1739619680043,0.0373427,194.44,194.43,9.16653315]
[1739619682245,0.0373427,194.44,194.41,9.16653315]
[1739619684248,9.20387585,194.44,194.4,0.03815909]
[1739619685848,0.0373427,194.44,194.4,0.03815909]
[1739619686642,5.1795427,194.44,194.4,0.03815909]
[1739619687249,0.0373427,194.44,194.4,0.03815909]
[1739619687843,0.0373427,194.44,194.43,9.16653315]
[1739619689949,0.0373427,194.44,194.41,9.16653315]
[1739619691753,9.20387585,194.44,194.4,0.03815909]
[1739619693350,14.34627585,194.44,194.4,0.03815909]
[1739619694454,5.1425,194.43,194.4,0.03815909]
[1739619694953,5.1427,194.42,194.4,0.03815909]
[1739619695156,9.20387585,194.44,194.4,0.03815909]
[1739619695456,5.1429,194.42,194.4,0.03815909]
[1739619695953,9.20387585,194.44,194.4,0.03815909]
[1739619697055,5.143,194.41,194.4,0.03815909]
[1739619697854,14.30933315,194.42,194.4,0.03815909]
[1739619698152,9.20387585,194.44,194.4,0.03815909]
[1739619698554,5.1426,194.43,194.4,0.03815909]
[1739619699155,9.16653315,194.42,194.4,0.03815909]
[1739619699456,5.143,194.41,194.4,0.03815909]
[1739619701456,5.1434,194.4,194.35,9.16653315]
[1739619701954,5.1434,194.4,194.35,14.31103315]
[1739619702548,0.03285345,194.39,194.36,0.03790377]
[1739619706162,5.17635345,194.39,194.36,0.03790377]
[1739619707858,0.03285345,194.39,194.36,0.03790377]
[1739619709263,5.17655345,194.39,194.36,0.03790377]
[1739619710562,0.03285345,194.39,194.36,0.03790377]
[1739619710957,0.03285345,194.39,194.37,9.16653315]
[1739619713867,0.03285345,194.39,194.37,14.31053315]
[1739619714367,0.03285345,194.39,194.37,9.16653315]
[1739619715262,0.03285345,194.39,194.36,0.03790377]
[1739619717064,5.1438,194.38,194.36,0.03790377]
[1739619717772,5.17635345,194.39,194.36,0.03790377]
[1739619719168,0.03285345,194.39,194.36,0.03790377]
[1739619719366,5.1438,194.38,194.36,0.03790377]
[1739619719969,0.03285345,194.39,194.36,0.03790377]
[1739619720175,5.17635345,194.39,194.36,0.03790377]
[1739619720373,0.03285345,194.39,194.36,0.03790377]
[1739619720576,5.144,194.37,194.36,0.03790377]
[1739619721274,14.31033315,194.38,194.36,0.03790377]
[1739619721474,9.16653315,194.38,194.36,0.03790377]
[1739619721878,5.144,194.37,194.36,0.03790377]
[1739619722067,9.16653315,194.38,194.27,9.16653315]
[1739619722270,9.16653315,194.34,194.27,9.16653315]
[1739619723077,5.1451,194.33,194.28,5.1464]
[1739619723279,0.03654906,194.32,194.29,0.03609579]
[1739619723875,5.18214906,194.32,194.29,0.03609579]
[1739619724679,5.1458,194.31,194.29,0.03609579]
[1739619724882,9.20308221,194.32,194.29,0.03609579]
[1739619725172,5.1456,194.31,194.29,0.03609579]
[1739619725674,9.20308221,194.32,194.29,0.03609579]
[1739619725675,0.03654906,194.32,194.29,9.20262894]
[1739619726476,0.03654906,194.32,194.29,0.03609579]
[1739619728177,9.16653315,194.31,194.29,0.03609579]
[1739619729182,14.31223315,194.31,194.29,0.03609579]
[1739619729396,9.16653315,194.31,194.29,0.03609579]
[1739619730381,14.31213315,194.31,194.29,0.03609579]
[1739619731679,5.1459,194.3,194.29,0.03609579]
[1739619731880,9.16653315,194.31,194.29,0.03609579]
[1739619732476,0.03654906,194.32,194.29,0.03609579]
[1739619735183,0.03654906,194.32,194.29,5.18219579]
[1739619735785,0.03654906,194.32,194.3,5.1458]
[1739619736687,0.03654906,194.32,194.29,0.03609579]
[1739619736889,0.03654906,194.32,194.31,5.1456]
[1739619737290,0.03654906,194.32,194.31,14.31213315]
[1739619738189,1.5078,194.4,194.36,5.1442]
[1739619738493,1.5078,194.4,194.34,9.16653315]
[1739619738693,1.5078,194.4,194.37,5.144]
[1739619739191,1.54083122,194.4,194.37,0.03470804]
[1739619742095,6.68413122,194.4,194.37,0.03470804]
[1739619743089,5.1435,194.39,194.37,0.03470804]
[1739619743295,14.31003315,194.39,194.37,0.03470804]
[1739619744791,9.16653315,194.39,194.37,0.03470804]
[1739619745088,1.54083122,194.4,194.37,0.03470804]
[1739619747401,0.03303122,194.4,194.37,0.03470804]
[1739619747699,0.03303122,194.4,194.37,5.17850804]
[1739619750006,14.34306437,194.4,194.37,0.03470804]
[1739619750602,9.19956437,194.4,194.37,0.03470804]
[1739619751198,9.19956437,194.4,194.37,5.17870804]
[1739619751603,9.19956437,194.4,194.37,0.03470804]
[1739619751805,0.03303122,194.4,194.37,0.03470804]
[1739619754104,0.03303122,194.4,194.38,9.16653315]
[1739619754306,0.03303122,194.4,194.39,5.1435]
[1739619770521,0.03303122,194.4,194.37,5.17850804]
[1739619771420,0.03303122,194.4,194.37,0.03470804]
[1739619771623,0.03303122,194.4,194.38,5.1437]
[1739619772121,0.03303122,194.4,194.38,14.31023315]
[1739619772918,0.03303122,194.4,194.39,5.1435]
[1739619773223,191.0,194.52,194.38,9.16653315]
[1739619773224,9.16653315,194.5,194.38,9.16653315]
[1739619773423,9.16653315,194.5,194.43,9.16653315]
[1739619774219,9.16653315,194.5,194.45,5.1418]
[1739619774419,0.03638786,194.48,194.45,5.17744796]
[1739619774820,0.03638786,194.48,194.46,5.1416]
[1739619775222,0.03638786,194.48,194.45,9.20218111]
[1739619776724,0.03638786,194.48,194.45,14.34388111]
[1739619777223,0.03638786,194.48,194.47,9.16653315]
[1739619777429,5.1387,194.57,194.47,9.16653315]
[1739619777624,5.1387,194.57,194.52,9.16653315]
[1739619777821,9.16653315,194.58,194.52,14.30653315]
[1739619778621,0.03427901,194.57,194.53,0.03340464]
[1739619779625,5.17307901,194.57,194.53,0.03340464]
[1739619780025,0.03427901,194.57,194.53,0.03340464]
[1739619782030,5.1391,194.56,194.53,0.03340464]
[1739619783629,0.03427901,194.57,194.53,0.03340464]
[1739619783827,5.1394,194.55,194.53,0.03340464]
[1739619784129,9.16653315,194.56,194.53,0.03340464]
[1739619785125,0.03427901,194.57,194.53,0.03340464]
[1739619785921,5.17327901,194.57,194.53,0.03340464]
[1739619786123,0.03427901,194.57,194.54,9.16653315]
[1739619787427,5.17307901,194.57,194.54,9.16653315]
[1739619788420,0.03427901,194.57,194.54,9.16653315]
[1739619789829,0.03427901,194.57,194.54,14.30593315]
[1739619791125,0.03427901,194.57,194.56,9.16653315]
[1739619791327,100.81674018,194.63,194.56,9.16653315]
[1739619791527,100.81674018,194.63,194.61,9.16653315]
[1739619791831,100.81674018,194.63,194.59,9.16653315]
[1739619792638,100.85116627,194.63,194.59,9.20055811]
[1739619795037,5.1375,194.62,194.59,9.20055811]
[1739619795637,100.85116627,194.63,194.59,9.20055811]
[1739619795836,100.85116627,194.63,194.59,0.03402496]
[1739619796037,5.1375,194.62,194.59,0.03402496]
[1739619796835,5.1377,194.61,194.59,0.03402496]
[1739619797737,105.98856627,194.63,194.59,0.03402496]
[1739619798341,5.1375,194.62,194.59,0.03402496]
[1739619798730,100.85116627,194.63,194.59,0.03402496]
[1739619798931,5.1377,194.61,194.59,0.03402496]
[1739619800140,100.85116627,194.63,194.59,9.20055811]
[1739619801142,0.03442609,194.63,194.61,14.30413315]
[1739619803646,0.03442609,194.63,194.62,5.1374]
[1739619807848,0.03442609,194.63,194.61,14.30413315]
[1739619808247,0.03442609,194.63,194.61,9.16653315]
[1739619808547,0.03442609,194.63,194.62,5.1374]
[1739619808844,0.03442609,194.63,194.61,9.16653315]
[1739619809153,0.03442609,194.63,194.62,5.1374]
[1739619809540,0.03442609,194.63,194.61,9.16653315]
[1739619809745,0.03442609,194.63,194.61,14.30393315]
[1739619810747,0.03442609,194.63,194.62,5.1374]
[1739619812443,0.03442609,194.63,194.61,9.16653315]
[1739619812946,0.03442609,194.63,194.61,14.30423315]
[1739619813141,0.03442609,194.63,194.61,9.16653315]
[1739619813749,0.03442609,194.63,194.62,5.1374]
[1739619816152,1.5732,194.71,194.67,5.1359]
[1739619816352,1.5732,194.71,194.69,9.16653315]
[1739619818751,6.7082,194.71,194.69,9.16653315]
[1739619819352,1.5732,194.71,194.69,9.16653315]
[1739619819556,109.37649157,194.72,194.69,9.16653315]
[1739619820256,5.1351,194.71,194.69,9.16653315]
[1739619820853,104.24169157,194.72,194.68,0.03347938]
[1739619821456,5.1355,194.7,194.68,0.03347938]
[1739619821959,104.24169157,194.72,194.68,0.03347938]
[1739619822153,5.1352,194.71,194.68,0.03347938]
[1739619822358,104.24169157,194.72,194.68,0.03347938]
[1739619822857,5.1351,194.71,194.68,0.03347938]
[1739619823758,5.1353,194.7,194.68,0.03347938]
[1739619825066,101.05769157,194.72,194.68,0.03347938]
[1739619825263,0.03754197,194.72,194.69,9.16653315]
[1739619829367,0.03754197,194.72,194.71,9.16653315]
[1739619831265,9.20407512,194.72,194.68,0.03347938]
[1739619831668,9.16653315,194.7,194.68,0.03347938]
[1739619831971,5.1356,194.69,194.68,0.03347938]
[1739619833474,9.16653315,194.7,194.61,9.16653315]
[1739619833672,9.16653315,194.66,194.59,9.16653315]
[1739619834064,5.1369,194.64,194.59,9.16653315]
[1739619834368,9.16653315,194.66,194.59,9.16653315]
[1739619834569,0.03627791,194.63,194.6,0.03287213]
[1739619836077,0.03627791,194.63,194.61,9.16653315]
[1739619836773,0.03627791,194.63,194.62,5.1374]
[1739619844074,9.16653315,194.72,194.61,9.16653315]
[1739619844373,5.1348,194.72,194.67,9.16653315]
[1739619845176,9.16653315,194.74,194.67,9.16653315]
[1739619845376,0.0395804,194.71,194.68,0.03344583]
[1739619846070,9.16653315,194.7,194.68,0.03344583]
[1739619846882,9.16653315,194.7,194.61,3.23]
[1739619846883,9.16653315,194.7,194.61,9.16653315]
[1739619847069,9.16653315,194.7,194.51,56.85938508]
[1739619847070,9.16653315,194.64,194.58,9.16653315]
[1739619847470,9.16653315,194.64,194.56,9.16653315]
[1739619848082,0.0341641,194.62,194.58,0.03761751]
[1739619848685,9.20069725,194.62,194.58,0.03761751]
[1739619849083,9.16653315,194.6,194.58,0.03761751]
[1739619850188,14.30443315,194.6,194.58,0.03761751]
[1739619851086,9.16653315,194.6,194.58,0.03761751]
[1739619857190,14.30443315,194.6,194.58,0.03761751]
[1739619857992,5.1382,194.59,194.58,0.03761751]
[1739619858193,5.1382,194.59,194.52,9.16653315]
[1739619858387,9.16653315,194.58,194.52,9.16653315]
[1739619858589,9.16653315,194.58,194.55,5.1392]
[1739619859093,9.16653315,194.58,194.54,5.1395]
[1739619859294,0.03920499,194.57,194.54,5.1395]
[1739619860788,0.03920499,194.57,194.53,0.03639626]
[1739619863195,5.17800499,194.57,194.53,0.03639626]
[1739619864397,0.03920499,194.57,194.53,0.03639626]
[1739619864597,14.30553315,194.56,194.53,0.03639626]
[1739619871096,9.16653315,194.56,194.53,0.03639626]
[1739619873997,9.16653315,194.56,194.53,5.17619626]
[1739619874697,0.03920499,194.57,194.53,0.03639626]
[1739619874902,0.03920499,194.57,194.54,9.16653315]
[1739619875597,0.03920499,194.57,194.56,5.139]
[1739619876298,1.32416986,194.57,194.56,5.139]
[1739619876703,0.03920499,194.57,194.56,5.139]
[1739619877201,1.32416362,194.57,194.56,5.139]
[1739619883702,1.32416362,194.57,194.56,14.30553315]
[1739619883907,0.03920499,194.57,194.56,14.30553315]
[1739619886803,1.32397764,194.57,194.56,14.30553315]
[1739619890708,1.32397764,194.57,194.56,5.139]
[1739619893610,1.32397764,194.57,194.56,14.30553315]
[1739619893915,1.32399107,194.57,194.56,14.30553315]
[1739619894211,1.32399205,194.57,194.56,14.30553315]
[1739619894510,1.32399205,194.57,194.56,5.139]
[1739619899314,1.32399205,194.57,194.55,5.1392]
[1739619899517,1.28478706,194.56,194.55,5.1392]
[1739619899815,0.03920499,194.57,194.56,5.139]
[1739619900417,0.03920499,194.57,194.54,9.16653315]
[1739619900418,0.03920499,194.57,194.55,5.1392]
[1739619900820,0.03920499,194.57,194.54,9.16653315]
[1739619901320,0.03920499,194.57,194.55,5.1393]
[1739619901521,0.03920499,194.57,194.54,9.16653315]
[1739619902319,0.03920499,194.57,194.55,5.1393]
[1739619902821,0.03920499,194.57,194.56,5.139]
[1739619903315,0.03920499,194.57,194.56,14.30553315]
[1739619904220,300.38505296,194.65,194.56,9.16653315]
[1739619904413,109.38505296,194.65,194.6,9.16653315]
[1739619904720,1.6272,194.67,194.6,9.16653315]
[1739619905019,1.6272,194.67,194.61,5.1376]
[1739619905219,9.16653315,194.66,194.61,5.1376]
[1739619905420,9.20323645,194.66,194.62,0.03710156]
[1739619907326,9.16653315,194.64,194.62,0.03710156]
[1739619910529,9.20323645,194.66,194.62,0.03710156]
[1739619910728,0.0367033,194.66,194.62,0.03710156]
[1739619911427,0.0367033,194.66,194.62,9.20363471]
[1739619911929,0.0367033,194.66,194.64,9.16653315]
[1739619912429,0.0367033,194.66,194.65,5.1366]
[1739619914828,200.16653315,194.72,194.64,9.16653315]
[1739619915028,9.16653315,194.72,194.68,5.1357]
[1739619915229,1.6032,194.73,194.67,9.16653315]
[1739619915523,9.16653315,194.74,194.69,9.16653315]
[1739619916124,0.03683344,194.73,194.7,0.03326831]
[1739619916731,0.03683344,194.73,194.71,5.1348]
[1739619917230,0.03683344,194.73,194.71,14.30133315]
[1739619918432,0.03683344,194.73,194.71,9.16653315]
[1739619919134,0.03683344,194.73,194.7,0.03326831]
[1739619921734,9.16653315,194.72,194.7,0.03326831]
[1739619922432,5.135,194.71,194.7,0.03326831]
[1739619922731,9.16653315,194.72,194.7,0.03326831]
[1739619924728,0.03683344,194.73,194.7,0.03326831]
[1739619927835,0.03683344,194.73,194.7,5.16856831]
[1739619929438,0.03683344,194.73,194.72,5.1348]
[1739619933942,0.03683344,194.73,194.71,9.16653315]
[1739619934138,0.03683344,194.73,194.71,14.30153315]
[1739619934643,0.03683344,194.73,194.72,5.1348]
[1739619938341,0.03683344,194.73,194.71,9.16653315]
[1739619939743,0.03683344,194.73,194.71,14.30153315]
[1739619940538,0.03683344,194.73,194.7,0.03326831]
[1739619941043,5.135,194.72,194.7,0.03326831]
[1739619941339,9.16653315,194.72,194.7,0.03326831]
[1739619941843,5.135,194.71,194.7,0.03326831]
[1739619946447,5.1363,194.67,194.62,9.16653315]
[1739619947148,9.16653315,194.69,194.62,9.16653315]
[1739619947349,5.1358,194.68,194.62,14.30393315]
[1739619947550,0.03538103,194.67,194.64,0.03503178]
[1739619948950,0.03538103,194.67,194.64,9.20156493]
[1739619949150,0.03538103,194.67,194.66,9.16653315]
[1739619950053,0.03538103,194.67,194.66,14.30283315]
[1739619957256,1.6102,194.77,194.66,14.30283315]
[1739619957257,10.77673315,194.77,194.66,9.16653315]
[1739619957551,1.6102,194.77,194.73,9.16653315]
[1739619957853,9.16653315,194.79,194.73,9.16653315]
[1739619958358,14.29953315,194.79,194.73,9.16653315]
[1739619958556,0.03448016,194.78,194.74,0.03523991]
[1739619959950,0.03448016,194.78,194.74,5.16933991]
[1739619960656,0.03448016,194.78,194.74,0.03523991]
[1739619963156,9.16653315,194.75,194.74,0.03523991]
[1739619963351,9.16653315,194.75,194.67,9.16653315]
[1739619963566,9.16653315,194.73,194.67,9.16653315]
[1739619964569,0.03305857,194.72,194.68,0.03632452]
[1739619965066,0.03305857,194.72,194.69,9.16653315]
[1739619966065,0.03305857,194.72,194.69,14.30203315]
[1739619967563,0.03305857,194.72,194.71,9.16653315]
[1739619968165,0.03305857,194.72,194.71,14.30153315]
[1739619970469,116.79471367,194.81,194.71,9.16653315]
[1739619970669,116.79471367,194.81,194.75,5.1337]
[1739619970965,9.16653315,194.81,194.75,5.1337]
[1739619971670,0.03258655,194.8,194.76,0.03290639]
[1739619972572,0.03258655,194.8,194.77,5.1334]
[1739619973170,0.03258655,194.8,194.78,5.1331]
[1739619973367,0.03258655,194.8,194.76,9.19943954]
[1739619973770,0.03258655,194.8,194.77,5.1334]
[1739619974775,0.03258655,194.8,194.76,9.19943954]
[1739619975373,0.03258655,194.8,194.76,14.33313954]
[1739619977275,0.03258655,194.8,194.76,9.19943954]
[1739619978672,0.03258655,194.8,194.76,0.03290639]
[1739619979476,9.16653315,194.79,194.76,0.03290639]
[1739619980275,14.29953315,194.79,194.76,0.03290639]
[1739619980477,9.16653315,194.79,194.76,0.03290639]
[1739619980675,5.1334,194.78,194.76,0.03290639]
[1739619980877,9.16653315,194.79,194.76,0.03290639]
[1739619981279,0.03258655,194.8,194.76,0.03290639]
[1739619981471,0.03258655,194.8,194.76,9.19943954]
[1739619982382,0.03258655,194.8,194.76,0.03290639]
[1739619982584,5.1334,194.78,194.76,0.03290639]
[1739619984287,14.29993315,194.77,194.76,0.03290639]
[1739619984583,9.16653315,194.77,194.68,14.30233315]
[1739619984777,5.1345,194.73,194.68,9.16653315]
[1739619984982,9.16653315,194.72,194.66,91.277818]
[1739619985582,5.1351,194.71,194.66,91.277818]
[1739619985883,5.1351,194.71,194.67,0.0365546]
[1739619985884,0.03357986,194.7,194.67,0.0365546]
[1739619986386,5.16887986,194.7,194.67,0.0365546]
[1739619986586,14.33541301,194.7,194.67,0.0365546]
[1739619986787,9.20011301,194.7,194.67,0.0365546]
[1739619987587,14.33541301,194.7,194.67,0.0365546]
[1739619987789,9.20011301,194.7,194.67,0.0365546]
[1739619989789,5.1356,194.69,194.67,0.0365546]
[1739619990689,9.20011301,194.7,194.67,0.0365546]
[1739619990884,14.30233315,194.68,194.67,0.0365546]
[1739619991187,9.16653315,194.68,194.6,9.16653315]
[1739619991380,206.42,194.76,194.6,9.16653315]
[1739619991381,9.16653315,194.66,194.6,9.16653315]
[1739619991688,9.16653315,194.66,194.6,14.30443315]
[1739619991990,9.16653315,194.66,194.6,9.16653315]
[1739619992289,0.03395461,194.65,194.61,0.0325056]
[1739619992882,0.03395461,194.65,194.61,5.1701056]
[1739619993089,0.03395461,194.65,194.61,0.0325056]
[1739619993289,0.03395461,194.65,194.62,9.16653315]
[1739619993587,0.03395461,194.65,194.63,5.137]
[1739619995490,0.03395461,194.65,194.62,9.16653315]
[1739619995789,0.03395461,194.65,194.63,5.1371]
[1739619995983,0.03395461,194.65,194.62,9.16653315]
[1739619996184,0.03395461,194.65,194.63,5.1371]
[1739619996792,0.03395461,194.65,194.64,5.1369]
[1739619997892,0.03395461,194.65,194.64,14.30343315]
[1739619999390,0.03395461,194.65,194.62,14.30373315]
[1739619999992,0.03395461,194.65,194.62,9.16653315]
[1739620000193,0.03395461,194.65,194.61,0.0325056]
[1739620001394,9.16653315,194.64,194.61,0.0325056]
[1739620001595,14.30353315,194.64,194.61,0.0325056]
[1739620001793,9.16653315,194.62,194.61,0.0325056]
[1739620005096,9.16653315,194.64,194.61,0.0325056]
[1739620007198,5.17055461,194.65,194.61,0.0325056]
[1739620007395,0.03395461,194.65,194.61,0.0325056]
[1739620007599,0.03395461,194.65,194.62,9.16653315]
[1739620007798,0.03395461,194.65,194.63,5.1371]
[1739620008494,0.03395461,194.65,194.64,9.16653315]
[1739620008698,0.03395461,194.65,194.64,14.30343315]
[1739620010601,0.03395461,194.65,194.64,9.16653315]
[1739620010802,0.03395461,194.65,194.62,14.30363315]
[1739620012103,0.03395461,194.65,194.62,9.16653315]
[1739620012605,0.03395461,194.65,194.61,0.0325056]
[1739620012806,5.1369,194.64,194.61,0.0325056]
[1739620013105,0.03395461,194.65,194.61,0.0325056]
[1739620013506,0.03395461,194.65,194.62,9.16653315]
[1739620013705,0.03395461,194.65,194.63,5.1369]
[1739620014006,0.03395461,194.65,194.62,9.16653315]
[1739620014308,0.03395461,194.65,194.62,14.30393315]
[1739620020212,0.03395461,194.65,194.62,9.16653315]
[1739620020914,0.03395461,194.65,194.61,0.0325056]
[1739620021311,0.03395461,194.65,194.62,9.16653315]
[1739620022015,0.03395461,194.65,194.63,5.1371]
[1739620025216,0.03395461,194.65,194.62,9.16653315]
[1739620026813,0.03395461,194.65,194.63,5.1371]
[1739620027012,0.03395461,194.65,194.62,9.16653315]
[1739620027518,0.03395461,194.65,194.62,14.30393315]
[1739620028019,0.03395461,194.65,194.62,9.16653315]
[1739620028220,0.03395461,194.65,194.61,0.0325056]
[1739620029121,9.16653315,194.64,194.61,0.0325056]
[1739620029522,5.1371,194.63,194.61,0.0325056]
[1739620029814,9.16653315,194.64,194.61,0.0325056]
[1739620031016,14.30343315,194.64,194.61,0.0325056]
[1739620031618,9.16653315,194.64,194.61,0.0325056]
[1739620031826,5.1372,194.63,194.61,0.0325056]
[1739620033221,5.1374,194.62,194.61,0.0325056]
[1739620033625,14.30393315,194.62,194.61,0.0325056]
[1739620035221,9.16653315,194.62,194.53,1.5545]
[1739620035425,0.03395461,194.65,194.52,9.16653315]
[1739620035426,9.16653315,194.57,194.52,9.16653315]
[1739620035823,9.16653315,194.57,194.53,5.1398]
[1739620036029,9.16653315,194.57,194.5,9.16653315]
[1739620036232,9.16653315,194.55,194.5,9.16653315]
[1739620036421,9.20396245,194.55,194.52,0.03427785]
[1739620042223,9.16653315,194.53,194.52,0.03427785]
[1739620042930,14.30633315,194.53,194.52,0.03427785]
[1739620043127,9.16653315,194.53,194.52,0.03427785]
[1739620045727,0.0374293,194.55,194.52,0.03427785]
[1739620045932,9.16653315,194.66,194.54,9.16653315]
[1739620046230,9.16653315,194.64,194.57,9.16653315]
[1739620046424,9.16653315,194.62,194.55,9.16653315]
[1739620046926,9.16653315,194.62,194.57,0.03451982]
[1739620047132,0.03780604,194.6,194.57,0.03451982]
[1739620047933,0.03780604,194.6,194.57,9.20105297]
[1739620048133,0.03780604,194.6,194.59,9.16653315]
[1739620049034,0.03780604,194.6,194.59,14.30473315]
[1739620052734,1.5883,194.69,194.59,9.16653315]
[1739620052936,1.5883,194.69,194.64,9.16653315]
[1739620054036,0.03359865,194.68,194.65,0.03284546]
[1739620055136,5.16949865,194.68,194.65,0.03284546]
[1739620055435,9.16653315,194.66,194.6,9.16653315]
[1739620055845,14.30293315,194.66,194.6,14.30443315]
[1739620056439,9.16653315,194.66,194.6,14.30443315]
[1739620056639,0.0336158,194.65,194.61,0.03366525]
[1739620056940,9.16653315,194.64,194.61,0.03366525]
[1739620057141,14.30363315,194.64,194.61,0.03366525]